[Event "Titled Tuesday Blitz February 15 Late 2022"]
[White "Yedidia, Daniel"]
[Black "Van den Dikkenberg, Erik"]
[WhiteFideId "30905907"]
[BlackFideId "1005880"]
[WhiteElo "2487"]
[BlackElo "2118"]
[Result "1-0"]
[Round "02"]
[TimeControl "180+1"]
[Date "2022.02.16"]
[WhiteClock "0:00:11"]
[BlackClock "0:00:05"]

1. d4 {[%clk 0:03:00]}  Nf6 {[%clk 0:02:07]} 2. c4 {[%clk 0:03:00]}  g6 {[%clk 0:02:07]} 3. Nc3 {[%clk 0:03:00]}  Bg7 {[%clk 0:02:07]} 4. e4 {[%clk 0:03:01]}  d6 {[%clk 0:02:08]} 5. Nf3 {[%clk 0:03:02]}  O-O {[%clk 0:02:09]} 6. Be2 {[%clk 0:03:02]}  e5 {[%clk 0:02:09]} 7. Be3 {[%clk 0:03:03]}  Nc6 {[%clk 0:02:10]} 8. O-O {[%clk 0:02:52]}  Re8 {[%clk 0:02:09]} 9. d5 {[%clk 0:02:51]}  Ne7 {[%clk 0:02:09]} 10. Ne1 {[%clk 0:02:52]}  Nd7 {[%clk 0:02:06]} 11. Nd3 {[%clk 0:02:50]}  b6 {[%clk 0:02:06]} 12. b4 {[%clk 0:02:50]}  f5 {[%clk 0:02:06]} 13. f3 {[%clk 0:02:49]}  f4 {[%clk 0:01:58]} 14. Bf2 {[%clk 0:02:49]}  g5 {[%clk 0:01:58]} 15. c5 {[%clk 0:02:48]}  h5 {[%clk 0:01:57]} 16. cxd6 {[%clk 0:02:41]}  cxd6 {[%clk 0:01:57]} 17. Nb5 {[%clk 0:02:40]}  Nf6 {[%clk 0:01:56]} 18. Rc1 {[%clk 0:02:38]}  Rf8 {[%clk 0:01:50]} 19. Nc7 {[%clk 0:01:55]}  Rb8 {[%clk 0:01:48]} 20. Qc2 {[%clk 0:01:53]}  g4 {[%clk 0:01:47]} 21. Nb5 {[%clk 0:01:47]}  gxf3 {[%clk 0:01:25]} 22. Bxf3 {[%clk 0:01:44]}  Ng6 {[%clk 0:01:00]} 23. Qc7 {[%clk 0:01:38]}  Ba6 {[%clk 0:00:55]} 24. a4 {[%clk 0:01:23]}  Bxb5 {[%clk 0:00:53]} 25. axb5 {[%clk 0:01:20]}  Qe8 {[%clk 0:00:48]} 26. Qxd6 {[%clk 0:01:15]}  Qxb5 {[%clk 0:00:48]} 27. Nxe5 {[%clk 0:01:07]}  Nxe5 {[%clk 0:00:47]} 28. Qxe5 {[%clk 0:01:07]}  Ng4 {[%clk 0:00:46]} 29. Qe6+ {[%clk 0:01:00]}  Kh8 {[%clk 0:00:45]} 30. Qg6 {[%clk 0:00:34]}  Nxf2 {[%clk 0:00:41]} 31. Qxh5+ {[%clk 0:00:32]}  Kg8 {[%clk 0:00:40]} 32. Rxf2 {[%clk 0:00:32]}  Rbc8 {[%clk 0:00:27]} 33. Rff1 {[%clk 0:00:11]}  Qxb4 {[%clk 0:00:23]} 34. Bg4 {[%clk 0:00:08]}  Rce8 {[%clk 0:00:14]} 35. Rc7 {[%clk 0:00:06]}  Qd4+ {[%clk 0:00:13]} 36. Kh1 {[%clk 0:00:07]}  Qd3 {[%clk 0:00:13]} 37. Rg1 {[%clk 0:00:05]}  Qxe4 {[%clk 0:00:13]} 38. Be6+ {[%clk 0:00:04]}  Rxe6 {[%clk 0:00:12]} 39. dxe6 {[%clk 0:00:05]}  Qxe6 {[%clk 0:00:13]} 40. Qg5 {[%clk 0:00:04]}  Qf6 {[%clk 0:00:12]} 41. Qxf6 {[%clk 0:00:04]}  Rxf6 {[%clk 0:00:12]} 42. Rxa7 {[%clk 0:00:04]}  Rd6 {[%clk 0:00:11]} 43. Rb1 {[%clk 0:00:05]}  Bd4 {[%clk 0:00:11]} 44. h3 {[%clk 0:00:05]}  Rg6 {[%clk 0:00:09]} 45. Ra4 {[%clk 0:00:06]}  Be3 {[%clk 0:00:08]} 46. Re4 {[%clk 0:00:05]}  Rd6 {[%clk 0:00:08]} 47. Ra1 {[%clk 0:00:04]}  Rd2 {[%clk 0:00:08]} 48. Re7 {[%clk 0:00:05]}  Kf8 {[%clk 0:00:08]} 49. Rb7 {[%clk 0:00:06]}  Rd8 {[%clk 0:00:05]} 50. Kh2 {[%clk 0:00:06]}  Bf2 {[%clk 0:00:05]} 51. h4 {[%clk 0:00:05]}  Bg3+ {[%clk 0:00:05]} 52. Kh3 {[%clk 0:00:06]}  Kg8 {[%clk 0:00:05]} 53. Kg4 {[%clk 0:00:06]}  Kf8 {[%clk 0:00:05]} 54. Raa7 {[%clk 0:00:06]}  Re8 {[%clk 0:00:04]} 55. Rh7 {[%clk 0:00:06]}  Kg8 {[%clk 0:00:04]} 56. Rag7+ {[%clk 0:00:06]}  Kf8 {[%clk 0:00:04]} 57. Rh8+ {[%clk 0:00:07]}  Kxg7 {[%clk 0:00:05]} 58. Rxe8 {[%clk 0:00:08]}  Kf6 {[%clk 0:00:05]} 59. Rb8 {[%clk 0:00:08]}  Ke5 {[%clk 0:00:05]} 60. Rxb6 {[%clk 0:00:08]}  Ke4 {[%clk 0:00:06]} 61. Rb3 {[%clk 0:00:08]}  Bf2 {[%clk 0:00:05]} 62. Rf3 {[%clk 0:00:09]}  Be3 {[%clk 0:00:05]} 63. h5 {[%clk 0:00:09]}  Ke5 {[%clk 0:00:05]} 64. Kg5 {[%clk 0:00:09]}  Ke6 {[%clk 0:00:05]} 65. Kg6 {[%clk 0:00:10]}  Ke5 {[%clk 0:00:04]} 66. h6 {[%clk 0:00:11]}  Ke4 {[%clk 0:00:05]} 67. h7 {[%clk 0:00:11]} 1-0


[Site "https://www.chess.com"]

[Event "Titled Tuesday Blitz February 15 Late 2022"]
[White "Yoo, Christopher Woojin"]
[Black "Mikhailov, Viacheslav"]
[WhiteFideId "30909694"]
[BlackFideId "4187369"]
[WhiteElo "2105"]
[BlackElo "2381"]
[Result "1-0"]
[Round "02"]
[TimeControl "180+1"]
[Date "2022.02.15"]
[WhiteClock "0:01:19"]
[BlackClock "0:01:53"]

1. e4 {[%clk 0:03:00]}  d6 {[%clk 0:02:59]} 2. d4 {[%clk 0:03:00]}  Nf6 {[%clk 0:02:56]} 3. Bd3 {[%clk 0:03:00]}  g6 {[%clk 0:02:56]} 4. Nf3 {[%clk 0:02:58]}  Bg7 {[%clk 0:02:56]} 5. O-O {[%clk 0:02:58]}  O-O {[%clk 0:02:57]} 6. Nbd2 {[%clk 0:02:56]}  Bg4 {[%clk 0:02:57]} 7. h3 {[%clk 0:02:56]}  Bxf3 {[%clk 0:02:57]} 8. Nxf3 {[%clk 0:02:57]}  Nbd7 {[%clk 0:02:57]} 9. e5 {[%clk 0:02:55]}  Ne8 {[%clk 0:02:57]} 10. Qe2 {[%clk 0:02:49]}  e6 {[%clk 0:02:54]} 11. Bg5 {[%clk 0:02:46]}  Qc8 {[%clk 0:02:51]} 12. Be7 {[%clk 0:02:45]}  c5 {[%clk 0:02:46]} 13. Bxf8 {[%clk 0:02:33]}  Kxf8 {[%clk 0:02:47]} 14. c3 {[%clk 0:02:29]}  Qc7 {[%clk 0:02:45]} 15. Rfe1 {[%clk 0:02:29]}  Rd8 {[%clk 0:02:44]} 16. Bb5 {[%clk 0:02:23]}  d5 {[%clk 0:02:38]} 17. Bxd7 {[%clk 0:02:21]}  Rxd7 {[%clk 0:02:38]} 18. Qe3 {[%clk 0:02:18]}  c4 {[%clk 0:02:32]} 19. b3 {[%clk 0:02:13]}  b5 {[%clk 0:02:30]} 20. Rab1 {[%clk 0:02:12]}  Qa5 {[%clk 0:02:29]} 21. bxc4 {[%clk 0:02:10]}  bxc4 {[%clk 0:02:27]} 22. Rb2 {[%clk 0:02:08]}  a6 {[%clk 0:02:14]} 23. Reb1 {[%clk 0:02:06]}  h6 {[%clk 0:02:14]} 24. h4 {[%clk 0:02:06]}  Nc7 {[%clk 0:02:11]} 25. Rb8+ {[%clk 0:01:52]}  Ke7 {[%clk 0:02:10]} 26. Rg8 {[%clk 0:01:40]}  Nb5 {[%clk 0:02:04]} 27. Rxg7 {[%clk 0:01:37]}  Qxc3 {[%clk 0:02:04]} 28. Qxh6 {[%clk 0:01:29]}  Qd3 {[%clk 0:02:00]} 29. Rf1 {[%clk 0:01:22]}  Nc3 {[%clk 0:01:57]} 30. Rg8 {[%clk 0:01:19]}  Ne2+ {[%clk 0:01:56]} 31. Kh2 {[%clk 0:01:20]}  Nxd4 {[%clk 0:01:53]} 32. Qf8# {[%clk 0:01:19]} 1-0


[Site "https://www.chess.com"]

[Event "Titled Tuesday Blitz February 15 Late 2022"]
[White "volunteers1998"]
[Black "Kopczynski, Michal"]
[BlackFideId "1124200"]
[WhiteElo "2259"]
[BlackElo "2235"]
[Result "1-0"]
[Round "02"]
[TimeControl "180+1"]
[Date "2022.02.16"]
[WhiteClock "0:00:53"]
[BlackClock "0:00:20"]

1. e4 {[%clk 0:02:59]}  c5 {[%clk 0:02:59]} 2. Nf3 {[%clk 0:02:59]}  d6 {[%clk 0:02:59]} 3. d4 {[%clk 0:02:57]}  cxd4 {[%clk 0:03:00]} 4. Nxd4 {[%clk 0:02:57]}  Nf6 {[%clk 0:03:01]} 5. Nc3 {[%clk 0:02:55]}  g6 {[%clk 0:03:01]} 6. Be3 {[%clk 0:02:54]}  Bg7 {[%clk 0:03:01]} 7. f3 {[%clk 0:02:51]}  O-O {[%clk 0:03:02]} 8. Qd2 {[%clk 0:02:46]}  Nc6 {[%clk 0:03:03]} 9. g4 {[%clk 0:02:44]}  d5 {[%clk 0:03:02]} 10. g5 {[%clk 0:02:27]}  Nh5 {[%clk 0:02:59]} 11. exd5 {[%clk 0:02:22]}  Nxd4 {[%clk 0:02:56]} 12. Bxd4 {[%clk 0:02:22]}  Bxd4 {[%clk 0:02:56]} 13. Qxd4 {[%clk 0:02:21]}  e5 {[%clk 0:02:56]} 14. Qd2 {[%clk 0:02:16]}  Bf5 {[%clk 0:02:49]} 15. O-O-O {[%clk 0:02:15]}  Qa5 {[%clk 0:02:47]} 16. Kb1 {[%clk 0:02:10]}  Rac8 {[%clk 0:02:43]} 17. Bd3 {[%clk 0:02:04]}  Bxd3 {[%clk 0:02:42]} 18. Qxd3 {[%clk 0:02:02]}  Rfd8 {[%clk 0:02:39]} 19. Rhe1 {[%clk 0:01:58]}  Nf4 {[%clk 0:02:34]} 20. Qe4 {[%clk 0:01:55]}  Rxc3 {[%clk 0:01:41]} 21. bxc3 {[%clk 0:01:53]}  Qxc3 {[%clk 0:01:42]} 22. Qxe5 {[%clk 0:01:46]}  Qb4+ {[%clk 0:01:37]} 23. Qb2 {[%clk 0:01:41]}  Qc5 {[%clk 0:01:25]} 24. Qd4 {[%clk 0:01:33]}  Qb5+ {[%clk 0:01:19]} 25. Ka1 {[%clk 0:01:26]}  Ne6 {[%clk 0:00:50]} 26. Qe4 {[%clk 0:01:18]}  Nxg5 {[%clk 0:00:32]} 27. Qe7 {[%clk 0:01:16]}  Rxd5 {[%clk 0:00:32]} 28. Rb1 {[%clk 0:01:12]}  Qc6 {[%clk 0:00:28]} 29. Rxb7 {[%clk 0:01:09]}  Qc3+ {[%clk 0:00:27]} 30. Kb1 {[%clk 0:01:06]}  Rf5 {[%clk 0:00:20]} 31. Rb8+ {[%clk 0:00:58]}  Kg7 {[%clk 0:00:20]} 32. Qf8+ {[%clk 0:00:55]}  Kf6 {[%clk 0:00:20]} 33. Qh8# {[%clk 0:00:53]} 1-0


[Site "https://www.chess.com"]

[Event "Titled Tuesday Blitz February 15 Late 2022"]
[White "Al-Tarboush, Ward"]
[Black "Roque Sola, Jose Luis"]
[WhiteFideId "7601450"]
[BlackFideId "5120390"]
[WhiteElo "2276"]
[BlackElo "1983"]
[Result "1-0"]
[Round "03"]
[TimeControl "180+1"]
[Date "2022.02.16"]
[WhiteClock "0:01:41"]
[BlackClock "0:00:26"]

1. e4 {[%clk 0:03:00]}  e6 {[%clk 0:02:56]} 2. d4 {[%clk 0:03:00]}  d5 {[%clk 0:02:55]} 3. exd5 {[%clk 0:03:01]}  exd5 {[%clk 0:02:54]} 4. Bd3 {[%clk 0:03:01]}  Bd6 {[%clk 0:02:53]} 5. Nc3 {[%clk 0:03:01]}  Nf6 {[%clk 0:02:50]} 6. Bg5 {[%clk 0:03:01]}  Be6 {[%clk 0:02:47]} 7. Nge2 {[%clk 0:03:01]}  Nc6 {[%clk 0:02:44]} 8. Qd2 {[%clk 0:02:58]}  h6 {[%clk 0:02:43]} 9. Bh4 {[%clk 0:02:58]}  g5 {[%clk 0:02:41]} 10. Bg3 {[%clk 0:02:58]}  a6 {[%clk 0:02:35]} 11. a3 {[%clk 0:02:58]}  Qd7 {[%clk 0:02:34]} 12. Na4 {[%clk 0:02:55]}  O-O-O {[%clk 0:02:28]} 13. Bxd6 {[%clk 0:02:47]}  Qxd6 {[%clk 0:02:27]} 14. O-O {[%clk 0:02:39]}  Nh5 {[%clk 0:01:59]} 15. g3 {[%clk 0:02:38]}  f5 {[%clk 0:01:52]} 16. Nc5 {[%clk 0:02:35]}  f4 {[%clk 0:01:42]} 17. c4 {[%clk 0:02:32]}  f3 {[%clk 0:01:37]} 18. Nc3 {[%clk 0:02:29]}  dxc4 {[%clk 0:01:37]} 19. Be4 {[%clk 0:02:18]}  g4 {[%clk 0:01:21]} 20. Nxe6 {[%clk 0:01:49]}  Qxe6 {[%clk 0:01:21]} 21. d5 {[%clk 0:01:50]}  Qe5 {[%clk 0:00:54]} 22. Qe3 {[%clk 0:01:50]}  Nd4 {[%clk 0:00:45]} 23. Rad1 {[%clk 0:01:49]}  Nb5 {[%clk 0:00:31]} 24. Nxb5 {[%clk 0:01:45]}  axb5 {[%clk 0:00:31]} 25. Rfe1 {[%clk 0:01:43]}  Qxb2 {[%clk 0:00:30]} 26. Qa7 {[%clk 0:01:41]}  Nf6 {[%clk 0:00:26]} 27. Bf5+ {[%clk 0:01:41]} 1-0


[Site "https://www.chess.com"]

[Event "Titled Tuesday Blitz February 15 Late 2022"]
[White "Ankerst, Mihael"]
[Black "Remolar Gallen, Jose"]
[WhiteFideId "14602369"]
[BlackFideId "2215187"]
[WhiteElo "2294"]
[BlackElo "2205"]
[Result "1-0"]
[Round "03"]
[TimeControl "180+1"]
[Date "2022.02.16"]
[WhiteClock "0:01:26"]
[BlackClock "0:00:14"]

1. e4 {[%clk 0:02:56]}  g6 {[%clk 0:02:58]} 2. d4 {[%clk 0:02:56]}  Bg7 {[%clk 0:02:58]} 3. Nc3 {[%clk 0:02:57]}  c6 {[%clk 0:02:57]} 4. f4 {[%clk 0:02:57]}  d5 {[%clk 0:02:58]} 5. e5 {[%clk 0:02:57]}  Nh6 {[%clk 0:02:58]} 6. Nf3 {[%clk 0:02:56]}  Bg4 {[%clk 0:02:58]} 7. Be3 {[%clk 0:02:55]}  Nf5 {[%clk 0:02:58]} 8. Bf2 {[%clk 0:02:55]}  h5 {[%clk 0:02:58]} 9. h3 {[%clk 0:02:55]}  Bxf3 {[%clk 0:02:58]} 10. Qxf3 {[%clk 0:02:56]}  h4 {[%clk 0:02:58]} 11. Bd3 {[%clk 0:02:56]}  e6 {[%clk 0:02:59]} 12. Ne2 {[%clk 0:02:55]}  Nd7 {[%clk 0:02:58]} 13. b3 {[%clk 0:02:52]}  Bf8 {[%clk 0:02:34]} 14. O-O {[%clk 0:02:51]}  Ba3 {[%clk 0:02:30]} 15. c4 {[%clk 0:02:49]}  Kf8 {[%clk 0:02:28]} 16. Rab1 {[%clk 0:02:49]}  a5 {[%clk 0:02:19]} 17. Nc3 {[%clk 0:02:49]}  Bb4 {[%clk 0:02:13]} 18. Rfc1 {[%clk 0:02:46]}  Kg7 {[%clk 0:02:11]} 19. Kh2 {[%clk 0:02:46]}  Nb6 {[%clk 0:02:01]} 20. Ne2 {[%clk 0:02:43]}  Ba3 {[%clk 0:01:50]} 21. Rc2 {[%clk 0:02:42]}  Qe7 {[%clk 0:01:48]} 22. Rf1 {[%clk 0:02:24]}  a4 {[%clk 0:01:38]} 23. Rb1 {[%clk 0:02:12]}  axb3 {[%clk 0:01:31]} 24. axb3 {[%clk 0:02:13]}  Bb4 {[%clk 0:01:30]} 25. Ng1 {[%clk 0:01:53]}  Ra3 {[%clk 0:01:25]} 26. Qe2 {[%clk 0:01:52]}  Rd8 {[%clk 0:01:04]} 27. Nf3 {[%clk 0:01:49]}  dxc4 {[%clk 0:00:50]} 28. Bxf5 {[%clk 0:01:47]}  cxb3 {[%clk 0:00:46]} 29. Rcb2 {[%clk 0:01:47]}  exf5 {[%clk 0:00:45]} 30. Bxh4 {[%clk 0:01:48]}  Qd7 {[%clk 0:00:41]} 31. Bf6+ {[%clk 0:01:43]}  Kg8 {[%clk 0:00:41]} 32. Qf2 {[%clk 0:01:36]}  Kf8 {[%clk 0:00:15]} 33. Qh4 {[%clk 0:01:34]}  Ke8 {[%clk 0:00:15]} 34. Rxb3 {[%clk 0:01:28]}  Rxb3 {[%clk 0:00:15]} 35. Rxb3 {[%clk 0:01:29]}  Nd5 {[%clk 0:00:16]} 36. Rxb4 {[%clk 0:01:27]}  Nxb4 {[%clk 0:00:14]} 37. Qh8# {[%clk 0:01:26]} 1-0


[Site "https://www.chess.com"]

[Event "Titled Tuesday Blitz February 15 Late 2022"]
[White "Antova, Gabriela"]
[Black "Debray, Christopher"]
[WhiteFideId "2915235"]
[BlackFideId "630810"]
[WhiteElo "2184"]
[BlackElo "2369"]
[Result "1/2-1/2"]
[Round "03"]
[TimeControl "180+1"]
[Date "2022.02.16"]
[WhiteClock "0:00:30"]
[BlackClock "0:00:39"]

1. d4 {[%clk 0:02:58]}  d5 {[%clk 0:02:56]} 2. c4 {[%clk 0:02:55]}  e6 {[%clk 0:02:52]} 3. Nf3 {[%clk 0:02:54]}  Nf6 {[%clk 0:02:48]} 4. Nc3 {[%clk 0:02:53]}  c6 {[%clk 0:02:48]} 5. e3 {[%clk 0:02:51]}  Nbd7 {[%clk 0:02:42]} 6. Qc2 {[%clk 0:02:50]}  Bd6 {[%clk 0:02:42]} 7. g4 {[%clk 0:02:48]}  h6 {[%clk 0:02:30]} 8. h3 {[%clk 0:02:48]}  Qe7 {[%clk 0:02:14]} 9. Be2 {[%clk 0:02:33]}  e5 {[%clk 0:02:13]} 10. cxd5 {[%clk 0:02:31]}  cxd5 {[%clk 0:02:04]} 11. Nb5 {[%clk 0:02:19]}  O-O {[%clk 0:02:04]} 12. Nxd6 {[%clk 0:02:00]}  Qxd6 {[%clk 0:02:05]} 13. dxe5 {[%clk 0:01:55]}  Nxe5 {[%clk 0:02:01]} 14. Nxe5 {[%clk 0:01:56]}  Qxe5 {[%clk 0:02:01]} 15. Bd2 {[%clk 0:01:41]}  Ne4 {[%clk 0:01:50]} 16. Bc3 {[%clk 0:01:25]}  Nxc3 {[%clk 0:01:49]} 17. Qxc3 {[%clk 0:01:02]}  Qe4 {[%clk 0:01:40]} 18. O-O {[%clk 0:00:55]}  f5 {[%clk 0:01:26]} 19. Rad1 {[%clk 0:00:49]}  fxg4 {[%clk 0:01:22]} 20. Rd4 {[%clk 0:00:50]}  Qg6 {[%clk 0:01:20]} 21. hxg4 {[%clk 0:00:47]}  Be6 {[%clk 0:01:08]} 22. Qd3 {[%clk 0:00:34]}  Qg5 {[%clk 0:01:02]} 23. f4 {[%clk 0:00:33]}  Qh4 {[%clk 0:01:00]} 24. f5 {[%clk 0:00:31]}  Qg3+ {[%clk 0:00:57]} 25. Kh1 {[%clk 0:00:31]}  Qh3+ {[%clk 0:00:58]} 26. Kg1 {[%clk 0:00:30]}  Qg3+ {[%clk 0:00:54]} 27. Kh1 {[%clk 0:00:30]}  Qh3+ {[%clk 0:00:39]} 28. Kg1 {[%clk 0:00:30]}  Qg3+ {[%clk 0:00:39]} 1/2-1/2


[Site "https://www.chess.com"]

[Event "Titled Tuesday Blitz February 15 Late 2022"]
[White "Araujo Filho, Luiz Antonio Coel"]
[Black "Horak, Martin"]
[WhiteFideId "2130661"]
[BlackFideId "367095"]
[WhiteElo "2208"]
[BlackElo "1997"]
[Result "0-1"]
[Round "03"]
[TimeControl "180+1"]
[Date "2022.02.16"]
[WhiteClock "0:00:08"]
[BlackClock "0:00:07"]

1. d4 {[%clk 0:03:00]}  Nf6 {[%clk 0:02:58]} 2. Nf3 {[%clk 0:03:01]}  d5 {[%clk 0:02:57]} 3. e3 {[%clk 0:03:01]}  c5 {[%clk 0:02:56]} 4. c3 {[%clk 0:03:01]}  Nc6 {[%clk 0:02:52]} 5. Nbd2 {[%clk 0:03:01]}  cxd4 {[%clk 0:02:45]} 6. exd4 {[%clk 0:03:01]}  Bg4 {[%clk 0:02:44]} 7. Qa4 {[%clk 0:03:01]}  a6 {[%clk 0:02:35]} 8. Ne5 {[%clk 0:02:57]}  Bd7 {[%clk 0:02:33]} 9. Qd1 {[%clk 0:02:52]}  Bf5 {[%clk 0:01:59]} 10. Qa4 {[%clk 0:02:50]}  Rc8 {[%clk 0:01:51]} 11. Be2 {[%clk 0:02:42]}  e6 {[%clk 0:01:51]} 12. O-O {[%clk 0:02:42]}  Bd6 {[%clk 0:01:50]} 13. f4 {[%clk 0:02:42]}  h6 {[%clk 0:01:39]} 14. Nxc6 {[%clk 0:02:26]}  Rxc6 {[%clk 0:01:37]} 15. Nf3 {[%clk 0:02:27]}  O-O {[%clk 0:01:27]} 16. Ne5 {[%clk 0:02:16]}  Rc8 {[%clk 0:01:24]} 17. Be3 {[%clk 0:02:14]}  Ne4 {[%clk 0:01:13]} 18. Qb3 {[%clk 0:02:00]}  Qc7 {[%clk 0:01:04]} 19. Rae1 {[%clk 0:01:55]}  f6 {[%clk 0:01:00]} 20. Nd3 {[%clk 0:01:49]}  b5 {[%clk 0:00:50]} 21. a4 {[%clk 0:01:44]}  Qc4 {[%clk 0:00:47]} 22. Qd1 {[%clk 0:01:24]}  Qxa4 {[%clk 0:00:45]} 23. Qxa4 {[%clk 0:01:17]}  bxa4 {[%clk 0:00:45]} 24. Ra1 {[%clk 0:01:17]}  a3 {[%clk 0:00:45]} 25. bxa3 {[%clk 0:01:16]}  Nxc3 {[%clk 0:00:43]} 26. Nc1 {[%clk 0:01:04]}  Nxe2+ {[%clk 0:00:38]} 27. Nxe2 {[%clk 0:01:04]}  Rc2 {[%clk 0:00:36]} 28. Rfe1 {[%clk 0:01:03]}  Rfc8 {[%clk 0:00:32]} 29. a4 {[%clk 0:00:57]}  Bb4 {[%clk 0:00:28]} 30. Rec1 {[%clk 0:00:50]}  a5 {[%clk 0:00:28]} 31. Ng3 {[%clk 0:00:42]}  Bd3 {[%clk 0:00:25]} 32. Rd1 {[%clk 0:00:38]}  Bc4 {[%clk 0:00:23]} 33. f5 {[%clk 0:00:38]}  exf5 {[%clk 0:00:21]} 34. Nxf5 {[%clk 0:00:38]}  Re8 {[%clk 0:00:20]} 35. Rac1 {[%clk 0:00:14]}  Rxc1 {[%clk 0:00:14]} 36. Bxc1 {[%clk 0:00:14]}  Kf7 {[%clk 0:00:08]} 37. Bd2 {[%clk 0:00:13]}  Bb3 {[%clk 0:00:08]} 38. Bxb4 {[%clk 0:00:13]}  Bxd1 {[%clk 0:00:07]} 39. Nd6+ {[%clk 0:00:13]}  Ke6 {[%clk 0:00:07]} 40. Nxe8 {[%clk 0:00:13]}  axb4 {[%clk 0:00:07]} 41. Nc7+ {[%clk 0:00:10]}  Kd6 {[%clk 0:00:07]} 42. Nb5+ {[%clk 0:00:10]}  Kc6 {[%clk 0:00:07]} 43. Kf2 {[%clk 0:00:11]}  Bxa4 {[%clk 0:00:06]} 44. Na7+ {[%clk 0:00:08]}  Kc7 {[%clk 0:00:07]} 45. Ke1 {[%clk 0:00:08]}  Kb7 {[%clk 0:00:07]} 0-1


[Site "https://www.chess.com"]

[Event "Titled Tuesday Blitz February 15 Late 2022"]
[White "Baches Garcia, Guillermo"]
[Black "Wu, Christopher"]
[WhiteFideId "2209764"]
[BlackFideId "2040875"]
[WhiteElo "2456"]
[BlackElo "2664"]
[Result "0-1"]
[Round "03"]
[TimeControl "180+1"]
[Date "2022.02.16"]
[WhiteClock "0:00:01"]
[BlackClock "0:00:16"]

1. e4 {[%clk 0:03:00]}  c5 {[%clk 0:02:57]} 2. Nf3 {[%clk 0:03:01]}  Nc6 {[%clk 0:02:56]} 3. d4 {[%clk 0:03:00]}  cxd4 {[%clk 0:02:57]} 4. Nxd4 {[%clk 0:03:01]}  e6 {[%clk 0:02:58]} 5. Nb5 {[%clk 0:03:00]}  d6 {[%clk 0:02:55]} 6. c4 {[%clk 0:02:59]}  a6 {[%clk 0:02:52]} 7. N5c3 {[%clk 0:02:58]}  Nf6 {[%clk 0:02:52]} 8. Be2 {[%clk 0:02:58]}  Be7 {[%clk 0:02:52]} 9. O-O {[%clk 0:02:58]}  O-O {[%clk 0:02:52]} 10. Na3 {[%clk 0:02:58]}  b6 {[%clk 0:02:47]} 11. Be3 {[%clk 0:02:57]}  Bb7 {[%clk 0:02:45]} 12. Qb3 {[%clk 0:02:57]}  Nd7 {[%clk 0:02:44]} 13. Rfd1 {[%clk 0:02:57]}  Rc8 {[%clk 0:02:41]} 14. Rd2 {[%clk 0:02:57]}  Qc7 {[%clk 0:02:36]} 15. Rc1 {[%clk 0:02:56]}  Na5 {[%clk 0:02:31]} 16. Qd1 {[%clk 0:02:48]}  Qb8 {[%clk 0:02:28]} 17. f3 {[%clk 0:02:40]}  Rfd8 {[%clk 0:02:26]} 18. Kh1 {[%clk 0:02:33]}  Nc6 {[%clk 0:02:18]} 19. Qg1 {[%clk 0:02:27]}  Ba8 {[%clk 0:02:15]} 20. Qf2 {[%clk 0:02:12]}  Nce5 {[%clk 0:02:12]} 21. Bf1 {[%clk 0:02:09]}  h6 {[%clk 0:02:01]} 22. Rcd1 {[%clk 0:02:01]}  Bc6 {[%clk 0:01:54]} 23. h3 {[%clk 0:01:52]}  Ng6 {[%clk 0:01:46]} 24. f4 {[%clk 0:01:46]}  Qb7 {[%clk 0:01:44]} 25. Bd3 {[%clk 0:01:26]}  Rb8 {[%clk 0:01:42]} 26. Nc2 {[%clk 0:01:21]}  Nf6 {[%clk 0:01:40]} 27. Re2 {[%clk 0:00:57]}  Rdc8 {[%clk 0:01:23]} 28. Nd4 {[%clk 0:00:50]}  Bxe4 {[%clk 0:01:19]} 29. Nxe4 {[%clk 0:00:46]}  Nxe4 {[%clk 0:01:19]} 30. Bxe4 {[%clk 0:00:44]}  Qxe4 {[%clk 0:01:18]} 31. f5 {[%clk 0:00:45]}  Bh4 {[%clk 0:01:05]} 32. Qf1 {[%clk 0:00:35]}  exf5 {[%clk 0:00:58]} 33. Nxf5 {[%clk 0:00:25]}  Qxc4 {[%clk 0:00:52]} 34. Nxd6 {[%clk 0:00:23]}  Qxa2 {[%clk 0:00:52]} 35. Nxc8 {[%clk 0:00:22]}  Rxc8 {[%clk 0:00:53]} 36. Bxb6 {[%clk 0:00:20]}  Qb3 {[%clk 0:00:43]} 37. Bd4 {[%clk 0:00:19]}  Qg3 {[%clk 0:00:35]} 38. Re3 {[%clk 0:00:18]}  Qb8 {[%clk 0:00:31]} 39. Rf3 {[%clk 0:00:17]}  Qb7 {[%clk 0:00:30]} 40. Bc3 {[%clk 0:00:16]}  Bg5 {[%clk 0:00:27]} 41. Qe2 {[%clk 0:00:14]}  Nh4 {[%clk 0:00:26]} 42. Rfd3 {[%clk 0:00:11]}  Qc6 {[%clk 0:00:20]} 43. Qg4 {[%clk 0:00:11]}  Re8 {[%clk 0:00:19]} 44. Bd2 {[%clk 0:00:07]}  f5 {[%clk 0:00:18]} 45. Qg3 {[%clk 0:00:05]}  Re2 {[%clk 0:00:18]} 46. Bxg5 {[%clk 0:00:03]}  Rxg2 {[%clk 0:00:18]} 47. Rd8+ {[%clk 0:00:03]}  Kh7 {[%clk 0:00:17]} 48. Qd6 {[%clk 0:00:01]}  Rg1+ {[%clk 0:00:16]} 0-1


[Site "https://www.chess.com"]

[Event "Titled Tuesday Blitz February 15 Late 2022"]
[White "Balint, Vilmos"]
[Black "Vargas Pereda, Jesus Manue"]
[WhiteFideId "718050"]
[BlackFideId "5115710"]
[WhiteElo "2059"]
[BlackElo "1769"]
[Result "1-0"]
[Round "03"]
[TimeControl "180+1"]
[Date "2022.02.16"]
[WhiteClock "0:01:28"]
[BlackClock "0:00:06"]

1. e4 {[%clk 0:03:00]}  c6 {[%clk 0:01:35]} 2. d4 {[%clk 0:02:58]}  d5 {[%clk 0:01:35]} 3. e5 {[%clk 0:02:58]}  Bf5 {[%clk 0:01:35]} 4. Nf3 {[%clk 0:02:59]}  e6 {[%clk 0:01:34]} 5. Be2 {[%clk 0:03:00]}  c5 {[%clk 0:01:34]} 6. O-O {[%clk 0:03:01]}  Nc6 {[%clk 0:01:35]} 7. c4 {[%clk 0:03:01]}  cxd4 {[%clk 0:01:35]} 8. Nxd4 {[%clk 0:03:00]}  Nxd4 {[%clk 0:01:35]} 9. Qxd4 {[%clk 0:03:00]}  dxc4 {[%clk 0:01:32]} 10. Qxc4 {[%clk 0:03:00]}  Ne7 {[%clk 0:01:29]} 11. Rd1 {[%clk 0:02:54]}  Qc8 {[%clk 0:01:24]} 12. Qa4+ {[%clk 0:02:51]}  Nc6 {[%clk 0:01:23]} 13. Na3 {[%clk 0:02:40]}  Be7 {[%clk 0:01:21]} 14. Nb5 {[%clk 0:02:35]}  O-O {[%clk 0:01:17]} 15. Nd6 {[%clk 0:02:34]}  Bxd6 {[%clk 0:01:17]} 16. exd6 {[%clk 0:02:34]}  Rd8 {[%clk 0:01:15]} 17. Bf4 {[%clk 0:02:28]}  Qd7 {[%clk 0:01:15]} 18. Bb5 {[%clk 0:02:20]}  Rac8 {[%clk 0:01:12]} 19. Rac1 {[%clk 0:02:20]}  h6 {[%clk 0:01:00]} 20. h3 {[%clk 0:02:19]}  g5 {[%clk 0:00:49]} 21. Be3 {[%clk 0:02:19]}  a6 {[%clk 0:00:46]} 22. Be2 {[%clk 0:02:18]}  Ne5 {[%clk 0:00:37]} 23. Qb3 {[%clk 0:02:03]}  Rxc1 {[%clk 0:00:36]} 24. Bxc1 {[%clk 0:02:03]}  Qc6 {[%clk 0:00:29]} 25. Qb4 {[%clk 0:01:56]}  b5 {[%clk 0:00:25]} 26. Be3 {[%clk 0:01:55]}  Nc4 {[%clk 0:00:23]} 27. Bxc4 {[%clk 0:01:52]}  Qxc4 {[%clk 0:00:23]} 28. Qa5 {[%clk 0:01:48]}  Rd7 {[%clk 0:00:20]} 29. Qxa6 {[%clk 0:01:46]}  Bd3 {[%clk 0:00:19]} 30. Rxd3 {[%clk 0:01:42]}  Qxd3 {[%clk 0:00:17]} 31. Qc8+ {[%clk 0:01:43]}  Kg7 {[%clk 0:00:17]} 32. Qxd7 {[%clk 0:01:43]}  Qd1+ {[%clk 0:00:16]} 33. Kh2 {[%clk 0:01:44]}  g4 {[%clk 0:00:14]} 34. Qc6 {[%clk 0:01:33]}  h5 {[%clk 0:00:12]} 35. d7 {[%clk 0:01:32]}  h4 {[%clk 0:00:12]} 36. hxg4 {[%clk 0:01:31]}  Qxg4 {[%clk 0:00:10]} 37. d8=Q {[%clk 0:01:30]}  h3 {[%clk 0:00:07]} 38. Qd4+ {[%clk 0:01:27]}  Qxd4 {[%clk 0:00:06]} 39. Bxd4+ {[%clk 0:01:28]} 1-0


[Site "https://www.chess.com"]